Cogmind - Beta 12 @@@ ROGUE MODE // 2023.04.01 @ 15:15:45 Player: Mark Result: Smashed by cave-in Performance ------------- Evolutions (1) 500 Regions Visited (3) 600 Robots Destroyed (18) 90 Value Destroyed (530) 530 Prototype IDs (0) 0 Alien Tech Used (0) 0 Bonus (0) 0 TOTAL SCORE: 1720 Bonus ------- None Cogmind --------- Core Integrity 0/400 Matter 69/300 Energy 93/100 System Corruption 0% Temperature Cool (0) Movement Core (100) Ox1 Location -9/Mines Parts ------- > --- POWER (2) -------- (None) > --- PROPULSION (2) --- (None) > --- UTILITY (2) ------ Targeting Computer > --- WEAPON (3) ------- Improved Light Cannon > --- INVENTORY (5) ---- (None) Peak State ------------ > --- POWER ------------ Deuterium Engine Deuterium Engine > --- PROPULSION ------- Light Treads Light Treads > --- UTILITY ---------- Sensor Array Targeting Computer > --- WEAPON ----------- Improved Grenade Launcher Improved Grenade Launcher Improved Grenade Launcher > --- INVENTORY -------- (None) [Rating: 19] Favorites ----------- Power Deuterium Engine Engine Deuterium Engine Propulsion Light Treads Treads Light Treads Wheel Wheel Flight Unit Flight Unit Utility Targeting Computer Device Sensor Array Processor Targeting Computer Weapon Improved Grenade Launcher Energy Gun Medium Laser Ballistic Gun Assault Rifle Ballistic Cannon Improved Light Cannon Launcher Improved Grenade Launcher Build | -11 -10 -9 -9 ------- Run | Jun Mat Mat Min Slots Evolved 2 | . . 2 . Power 1 | . . 1 . Propulsion . | . . . . Utility . | . . . . Weapon 1 | . . 1 . Parts Attached 27 | 4 9 13 1 Power 5 | 1 1 3 . Engine 5 | 1 1 3 . Core . | . . . . Reactor . | . . . . Propulsion 7 | 2 2 3 . Treads 2 | . . 2 . Leg . | . . . . Wheel 3 | 2 . 1 . Hover . | . . . . Flight 2 | . 2 . . Utility 4 | . 4 . . Device 2 | . 2 . . Storage . | . . . . Processor 2 | . 2 . . Hackware . | . . . . Protection . | . . . . Artifact . | . . . . Weapon 11 | 1 2 7 1 Energy Gun 3 | . 2 1 . Energy Cannon . | . . . . Ballistic Gun 3 | 1 . 2 . Ballistic Cannon 1 | . . . 1 Launcher 4 | . . 4 . Special Weapon . | . . . . Impact Weapon . | . . . . Slashing Weapon . | . . . . Piercing Weapon . | . . . . Special Melee Weapon . | . . . . Unidentified Prototypes . | . . . . Parts Lost 16 | . 2 6 8 Power 3 | . . 1 2 Propulsion 6 | . 1 3 2 Utility 2 | . 1 . 1 Weapon 5 | . . 2 3 Highest Loss Streak 8 | . 2 4 8 To Critical Strikes . | . . . . Average Slot Usage (%) 84 | . 80 75 95 Engine 16 | . 14 12 21 Treads 12 | . . 13 21 Wheel 6 | . 19 1 . Flight 1 | . 2 1 . Device 9 | . 7 11 9 Processor 11 | . 12 11 11 Energy Gun 4 | . 11 3 . Ballistic Gun 7 | . 14 11 . Launcher 14 | . . 8 31 Naked Turns . | . . . . Heaviest Build 37 | 5 8 37 37 Greatest Support 40 | 20 20 40 40 Greatest Overweight (x) 1 | . . 1 1 Average Overweight (x) . | . . . . Largest Inventory Capacity 5 | 5 5 5 5 Average Capacity 5 | 5 5 5 5 Most Carried 5 | 1 5 5 1 Average Carried 1 | . 1 2 . Final Capacity 5 | 5 5 5 5 Final Carried 2 | 1 2 . . Class Distribution -------------------- 47% | Mutant 27% | Bomber 14% | Gunner 6% | Scavenger-Mutant 3% | Scavenger-Gunner Dominant Class ---------------- Mutant | -10/Materials Mutant | -9/Materials Bomber | -9/Mines Resources | -11 -10 -9 -9 ----------- Run | Jun Mat Mat Min Matter Collected 558 | 243 162 110 43 Remotely . | . . . . Salvage Created 609 | 38 206 319 46 Parts 48 | 1 16 24 7 Haulers Intercepted . | . . . . Recyclers Shooed 1 | . 1 . . Parts Field Recycled . | . . . . Retrieved Matter . | . . . . Parts Self-Destructed . | . . . . Prevented . | . . . . Kills | -11 -10 -9 -9 ------- Run | Jun Mat Mat Min Combat Hostiles Destroyed 33 | 1 5 6 21 Guns 12 | 1 5 6 . AOE 21 | . . . 21 Classes Destroyed 7 | 1 1 2 3 Builder 1 | . . 1 . Tunneler 1 | . . . 1 Watcher 1 | . 1 . . Swarmer 3 | . . . 3 Grunt 8 | 1 5 2 . Sentry 4 | . . 4 . Assembled 18 | . . . 18 Best Kill Streak 18 | 1 2 5 18 Combat Bots Only 18 | 1 2 4 18 Max Kills in Single Turn 7 | 1 1 1 7 Gunslinging . | . . . . Exploded 7 | . . . 7 Melee . | . . . . Uniques/NPCs Destroyed . | . . . . Combat | -11 -10 -9 -9 -------- Run | Jun Mat Mat Min Damage Taken 1658 | 34 213 418 993 Core 483 | 23 33 118 309 Absorbed by Shields . | . . . . Core Remaining (%) 83 | 90 77 . . Volleys Fired 61 | 1 29 25 6 Largest 3 | 1 2 2 3 Hottest 108 | 20 70 70 108 Shots Fired 117 | 1 58 40 18 Gun 99 | 1 58 40 . Cannon . | . . . . Launcher 18 | . . . 18 Special . | . . . . Kinetic 55 | 1 29 25 . Thermal 44 | . 29 15 . Explosive 18 | . . . 18 Electromagnetic . | . . . . Robot Hit Streak 11 | 1 10 11 1 Robot Miss Streak 3 | . 3 2 3 Penetration Max . | . . . . Secondary Targets 1 | . 1 . . Max Gunslinging Chain 1 | . 1 . . Shots Hit Robots 68 | 1 38 28 1 Core Hits 61 | 1 12 13 35 Critical Kills . | . . . . Critical Parts Destroyed . | . . . . Critical Strikes 2 | . 2 . . Burn 2 | . 2 . . Melee Attacks . | . . . . Impact . | . . . . Slashing . | . . . . Piercing . | . . . . Sneak Attacks . | . . . . Combat Hostiles . | . . . . Follow-up Attacks . | . . . . Damage Inflicted 2389 | 15 465 386 1523 Guns 866 | 15 465 386 . Cannons . | . . . . Explosions 1523 | . . . 1523 Melee . | . . . . Ramming . | . . . . Kinetic 517 | 15 230 272 . Thermal 349 | . 235 114 . Explosive 1523 | . . . 1523 Electromagnetic . | . . . . Impact . | . . . . Slashing . | . . . . Piercing . | . . . . Highest Corruption 1 | . 1 . . Average Corruption 1 | . 1 . . Corruption Purged . | . . . . Corruption Blocked . | . . . . Effects 1 | . 1 . . Message Errors 1 | . 1 . . Overload Shots . | . . . . Overflow Damage 69 | . . . 69 Projectiles . | . . . . Explosions 69 | . . . 69 Melee . | . . . . Knockbacks . | . . . . Impact . | . . . . Kinetic . | . . . . Secondary . | . . . . Self-Inflicted Damage 52 | . . . 52 Shots 2 | . . . 2 Rammed . | . . . . Targets Rammed . | . . . . Kicked . | . . . . Crushed . | . . . . Highest Temperature 274 | . 186 27 274 Average Temperature 68 | . 68 10 119 Received Heat Transfer 392 | 18 114 180 80 Effects 1 | . . . 1 Energy Bleed 1 | . . . 1 Siege Activations . | . . . . Robots Corrupted . | . . . . Combat Hostiles . | . . . . Parts Fried . | . . . . Impact Corruptions . | . . . . Robots Melted . | . . . . Combat Hostiles . | . . . . Parts Melted 3 | . 3 . . Heat Transferred 1113 | . 839 274 . Parts Sabotaged . | . . . . Parts Stolen . | . . . . Parts Stripped . | . . . . Power Chain Reactions . | . . . . Missiles Intercepted . | . . . . Alert | -11 -10 -9 -9 ------- Run | Jun Mat Mat Min Peak Influence 253 | 20 214 210 253 Initial 90 | . 13 90 81 Average 147 | 3 98 195 178 Maximum Alert Level 1 | . 1 1 1 Low Security (%) 74 | 100 96 23 92 Level 1 25 | . 3 76 7 Level 2 . | . . . . Level 3 . | . . . . Level 4 . | . . . . Level 5 . | . . . . High Security . | . . . . Max Security . | . . . . Squads Dispatched 5 | . 3 2 . Investigation 2 | . 2 . . Extermination . | . . . . Reinforcement 3 | . 1 2 . Assault . | . . . . Garrison . | . . . . Intercept . | . . . . Searches Triggered . | . . . . Construction Impeded . | . . . . Haulers Reinforced . | . . . . Active Scanning Responses . | . . . . Cargo Convoy Interrupts . | . . . . Stealth | -11 -10 -9 -9 --------- Run | Jun Mat Mat Min Distress Signals 5 | . 2 2 1 Communications Jammed . | . . . . Distress Signals . | . . . . Times Spotted 41 | 1 10 6 24 Peak Tracking Total 13 | 1 4 4 13 Tactical Retreats 1 | . 1 . . Traps | -11 -10 -9 -9 ------- Run | Jun Mat Mat Min Traps Triggered . | . . . . Indirectly . | . . . . Trap Hack Attempts . | . . . . Triggered . | . . . . Disarmed . | . . . . Reprogrammed . | . . . . Reused . | . . . . Traps Extracted . | . . . . Installed . | . . . . Triggered . | . . . . Machines | -11 -10 -9 -9 ---------- Run | Jun Mat Mat Min Machines Disabled 2 | . . . 2 Max in Single Turn 2 | . . . 2 Machines Repaired . | . . . . Machines Sabotaged . | . . . . Overloaded Fab Kills . | . . . . Hacking | -11 -10 -9 -9 --------- Run | Jun Mat Mat Min Machines Accessed 5 | . 3 2 . Terminals 3 | . 2 1 . Fabricators . | . . . . Repair Stations . | . . . . Recycling Units 1 | . 1 . . Scanalyzers 1 | . . 1 . Garrison Access . | . . . . Total Hacks 16 | . 11 5 . Successful 12 | . 8 4 . Failed 4 | . 3 1 . Catastrophic 1 | . . 1 . Database Lockouts . | . . . . Manual . | . . . . Terminals 8 | . 6 2 . Fabricators . | . . . . Repair Stations . | . . . . Recycling Units 5 | . 5 . . Scanalyzers 3 | . . 3 . Garrison Access . | . . . . Terminal Hacks 5 | . 4 1 . Record 2 | . 2 . . Alert Level 1 | . . 1 . Locate Traps 1 | . 1 . . Recall Investigation 1 | . 1 . . Fabricator Hacks . | . . . . Repair Station Hacks . | . . . . Recycling Unit Hacks 4 | . 4 . . Recycle Component 2 | . 2 . . Process 2 | . 2 . . Scanalyzer 3 | . . 3 . Insert Component 3 | . . 3 . Garrison Access Hacks . | . . . . Unauthorized Hacks . | . . . . Terminals . | . . . . Fabricators . | . . . . Repair Stations . | . . . . Recycling Units . | . . . . Scanalyzers . | . . . . Garrison Access . | . . . . Data Cores Recovered . | . . . . Used . | . . . . Hacking Detections 4 | . 2 2 . Full Trace Events 3 | . 2 1 . Feedback Events 1 | . 1 . . Corruption 1 | . 1 . . Feedback Blocked . | . . . . Robot Schematics Acquired . | . . . . Robots Built . | . . . . Authchips . | . . . . Time . | . . . . Total Robot Build Rating . | . . . . Part Schematics Acquired . | . . . . Parts Built . | . . . . Authchips . | . . . . Time . | . . . . Total Part Build Rating . | . . . . Parts Repaired . | . . . . Time . | . . . . Parts Recycled 2 | . 2 . . Recycled Matter 99 | . 99 . . Retrieved Matter . | . . . . Retrieved Components . | . . . . Parts Scanalyzed . | . . . . Part Schematics Acquired . | . . . . Parts Damaged . | . . . . Bothacking | -11 -10 -9 -9 ------------ Run | Jun Mat Mat Min Used RIF Installer . | . . . . Robots Hacked . | . . . . Non-combat . | . . . . Combat . | . . . . Robot Hacks Applied . | . . . . Relay Couplers Released . | . . . . Fabnet Peak Effective % . | . . . . Robots Rewired . | . . . . Allies Hacked . | . . . . Hacks Repelled . | . . . . Allies | -11 -10 -9 -9 -------- Run | Jun Mat Mat Min Total Allies . | . . . . Largest Group . | . . . . Highest-Rated Group . | . . . . Highest-Rated Ally . | . . . . Total Orders . | . . . . Ally Attacks . | . . . . Total Damage . | . . . . Kills . | . . . . Allies Corrupted . | . . . . Allies Melted . | . . . . Intel | -11 -10 -9 -9 ------- Run | Jun Mat Mat Min Robot Analysis Total . | . . . . Derelict Logs Recovered . | . . . . Drone Launches . | . . . . Drone Recoveries . | . . . . Exploration | -11 -10 -9 -9 ------------- Run | Jun Mat Mat Min Turns Passed 975 | 69 282 281 343 Spaces Moved 610 | 80 184 135 211 Core 54 | 20 . 18 16 Treads 292 | . . 97 195 Legs . | . . . . Wheels 232 | 60 167 5 . Hover . | . . . . Flight 32 | . 17 15 . Fastest Speed 37 | 50 37 37 50 Average Speed 115 | 72 76 135 152 Slowest Speed 240 | 80 80 160 240 Overloaded Moves . | . . . . Propulsion Burnouts . | . . . . Robots Hopped . | . . . . Cave-ins Triggered 1 | . . . 1 Exploration Rate (%) 24 | 7 25 12 55 Regions Visited 3 Branch Regions 1 Pre-discovered Areas 1 | . . . 1 Known Exits Taken . | . . . . Unknown Exits Taken 3 | 1 1 1 . Scrap Searched 1 | . . . 1 Spaces Dug . | . . . . Terrain Destroyed 120 | . . . 120 Melee . | . . . . Projectile . | . . . . AOE 120 | . . . 120 Terrain Rammed . | . . . . Walls Destroyed . | . . . . Machines Disabled . | . . . . Actions | -11 -10 -9 -9 --------- Run | Jun Mat Mat Min Total 776 | 89 269 199 219 Wait 35 | . 33 2 . Move 607 | 79 183 134 211 Hop . | . . . . Pick Up 30 | 5 10 14 1 Fast Attach . | . . . . Attach 27 | 4 9 13 1 Detach 7 | . 4 3 . Swap . | . . . . Drop 9 | . 1 8 . Fire 61 | 1 29 25 6 Melee . | . . . . Ram . | . . . . Kick . | . . . . Crush . | . . . . Escape Stasis . | . . . . Rewire . | . . . . Trap . | . . . . Miscellaneous . | . . . . Route ------- -11/Junkyard -10/Materials -9/Materials (discovered 2 exits: [*Min] / [*Sto]) -9/Mines (discovered 1 exit: [*Zio]) History --------- Turn | Location | Event 2 | -11/Junkyard | Met Revision 17 48 | -11/Junkyard | Discovered new exit (range 8) 70 | -11/Junkyard | Entered Materials 308 | -10/Materials | Build established: Mutant 321 | -10/Materials | Discovered new exit (range 9) 352 | -10/Materials | Entered another Materials area 352 | -9/Materials | Evolved 2 slots: Power x1, Weapon x1 357 | -9/Materials | Discovered new exit (range 13) 420 | -9/Materials | Lost 4 parts (2n2w) 604 | -9/Materials | Discovered new exit (range 13) 633 | -9/Materials | Entered Mines 702 | -9/Mines | Learned location of Storage (-9) 843 | -9/Mines | A Derelict revealed a hidden shortcut to a safe place 921 | -9/Mines | Assembled infested the area 966 | -9/Mines | Core integrity fell below 50% 967 | -9/Mines | Destroyed 18 combat bots 974 | -9/Mines | Core integrity fell below 20% 977 | -9/Mines | Crushed by falling debris 977 | -9/Mines | Smashed by cave-in Last Messages --------------- Imp. Grenade Launcher destroyed. The unstable cave ceiling collapses. Deuterium Engine destroyed. The unstable cave ceiling collapses. Deuterium Engine destroyed. Lgt. Treads destroyed. The unstable cave ceiling collapses. as-62242 destroyed. The unstable cave ceiling collapses. Acquired 11 matter. Searching scrap... Found Lgt. EM Pulse Cannon. Found Med. Laser. Found ECM Suite. Found Imp. Light Cannon. Found 26 Matter. Acquired 26 matter. Acquired Imp. Light Cannon. The unstable cave ceiling collapses. Crushed by falling debris. Map ----- +----------------------------------------------------+ | ????## #####???????????????????? | | ##??# ????????????????????? | | #### #??????????????????????? | | ## #??????????????????????? | | #???????????????????????? | | ##???????????????????????? | | #????????????????????????? | | #????????????????????????? | | #????????????????????????? | | # #????###?????????????????? | | #### #???# ##?# ???????????? | | ???## ##?? ### #??????????? | | ????# ### #? ##?????????? | | ???## #? ??????????? | | ???# #?? ??????????? | | ???# #?? ???????????? | | ??## " #??# ???????????? | | ?## "%" ##??# #???????????? | | ## " ###### #######?#???? | | # ## ## # #???? | | ## ## # ##??? | | # # #??? | | # ## # d r #??? | | ###?## # [ #??? | | ????## # d #??? | | ?#### @ #??? | | ## #??? | | # # #??? | | # ### ## # #??? | | #### # #??? | | ##??## #### ??? | | ##### ###### #### #?? | | ## ##??###??## #?? | | ### #????????## < #?? | | ??## #?????????? #?? | | ???# ##??????????# ##?? | | ??# ###????????????###??? | | ??# ###???????????????????? | | ??# ##?????????????????????? | | ??## #??????????????????????? | | ???### ##??????????????????????? | | ?????####???????????????????????? | | ????????????????????????????????? | | ????????????????????????????????? | | | | | | | | | | | | | +----------------------------------------------------+ Best States ------------- Heat Dissipation 28 Energy Generation 23 Energy Capacity 450 Matter Stores 300 Matter Capacity 300 Sight Range 18 Robot Scan Range 14 Terrain Scan Density 10 Evasion (%) 61 Targeting Accuracy 5 Recoil Reduction 2 Item Schematics ----------------- None Robot Schematics ------------------ None Fabricated ------------ Nothing Alien Tech Used ----------------- None Achievements -------------- Exterminator One Hack Too Far Oops Quick And Dirty Challenges ------------ None Game ------ Seed AlertLightpackProjector Manual? 0 Play Time 00:24:38 Cumulative 1.0 hours Start 2023.04.01 @ 14:52:35 End 2023.04.01 @ 15:15:45 Sessions 1 Manual Loads 0 Difficulty Rogue Special Mode None Game No. 6 Rogue 6 Adventurer 0 Explorer 0 Win Type - Total 0 Types 0/0/0/0/0/0/0/0/0 Lore% 0 Gallery% 4 Achievement% 4 Wizard Run 0 Options --------- ASCII 1 Keyboard 1 Movement Numpad Keybinds 0 Fullscreen 1 Font 18/SmallcapsGlow Map View 76x50 Tactical HUD 0 Map Filters NONE Filters NONE Steam 1 RUN: 6fd36693-1f20-4bee-8b93-a1944d38ecb4